[Event "HSK GM Invitational 2022"]
[Site "Hamburg"]
[Date "2022.05.21"]
[Round "2.5"]
[White "Souleidis, Georgios"]
[Black "Trent, Lawrence"]
[Result "1/2-1/2"]
[ECO "C01"]
[WhiteElo "2430"]
[BlackElo "2398"]
[Annotator "TA"]
[PlyCount "146"]
[EventDate "2022.05.20"]
[EventType "tourn"]
[EventCountry "GER"]
[SourceTitle "playchess.com"]
[Source "ChessBase"]
[SourceQuality "1"]
[TimeControl "40/5400+30:1800+30"]

{[%evp 12,146,15,24,12,16,17,11,23,21,35,0,20,11,25,20,8,5,17,0,0,-5,0,0,0,0,0,0,32,-12,-18,-60,0,0,93,100,107,-89,-115,-106,-107,-111,0,0,0,-107,-107,-83,-70,-252,-230,-219,-219,-209,-93,-76,0,0,0,-112,-124,-128,-139,-1503,-1272,-29979,-29980,-29980,0,0,0,0,0,0,329,291,331,304,316,177,189,184,185,177,189,161,254,217,278,272,312,244,240,160,156,48,177,175,178,177,217,217,213,207,211,220,211,202,198,198,199,143,139,40,37,30,26,25,25,22,21,0,41,8,21,0,0,0,8,0,0,0,8,0,0,0,8]} 1. e4 {[%emt 0:00:14]} e6 {[%emt 0:01:24]} 2. d4 {[%emt 0:03:23]} d5 {[%emt 0:00:16]} 3. exd5 {[%emt 0:01:17]} exd5 {[%emt 0:00:06]} 4. Nf3 {[%emt 0:00:05]} Bd6 {[%emt 0:00:16]} 5. c4 {[%emt 0:00:08][%cal Bc2c4,Bc4c5][%mdl 32]} Nf6 {[%emt 0:00:02]} 6. c5 {[%emt 0:03:18]} Be7 {[%emt 0:00:18]} 7. Bd3 {[%emt 0:01:11]} O-O {[%emt 0:01:02] C01: French: Exchange Variation.} 8. O-O {[%emt 0:01:50]} b6 {[%emt 0:00:05]} 9. Be3 {[%emt 0:05:14]} bxc5 {[%emt 0:03:29]} 10. dxc5 {[%emt 0:00:27] [#]} a5 $146 {[%emt 0:00:15]} ({Predecessor:} 10... Na6 11. Bxa6 Bxa6 12. Re1 Re8 13. Nbd2 Qd7 14. Rc1 Bf8 15. h3 Qb5 16. Nb3 Rad8 {1-0 (44) Xiong,J (2709)-Holt,C (2549) Chess.com INT 2021}) 11. Nbd2 {[%emt 0:08:55]} Nc6 {[%emt 0:23:51]} 12. Bb5 {[%emt 0:09:56]} Bd7 {[%emt 0:07:27]} 13. Qa4 {[%emt 0:08:24]} Nb4 {[%emt 0:04:25]} 14. c6 {[%emt 0:03:02]} Bf5 {[%emt 0:02:31]} 15. Nd4 {[%emt 0:00:23] Prevents Nc2.} Bg6 {[%emt 0:00:20]} 16. N2f3 {[%emt 0:04:59]} Bd6 {[%emt 0:09:18]} 17. Rac1 {[%emt 0:07:39]} Re8 {[%emt 0:14:49]} 18. Bg5 {[%emt 0:04:32]} h6 {[%emt 0:14:37]} 19. Bh4 {[%emt 0:00:09]} Re4 {[%emt 0:00:01]} 20. a3 {[%emt 0:14:36] [#]} (20. Bg3 $5 {[%cal Ra2a3]}) 20... Bh5 $1 {[%emt 0:04:27] Black wants to play ...Bxf3.} 21. Qb3 {[%emt 0:10:42]} (21. axb4 Bxf3 22. Nxf3 Rxb4 $17) (21. Rce1 g5) 21... a4 {[%emt 0:03:13]} (21... Bxf3 $15 22. Nxf3 Rb8) 22. Bxa4 $11 {[%emt 0:00:04]} Rxa4 {[%emt 0:02:08]} 23. Qxa4 $16 {[%emt 0:00:38]} Nd3 {[%emt 0:00:05][%csl LRb2,LRc1] [#]} 24. Qb3 $2 {[%emt 0:03:48]} Nxc1 $17 {[%emt 0:03:32]} 25. Rxc1 {[%emt 0:00:03]} g5 $36 {[%emt 0:01:12][%mdl 2048] Black is on the roll.} 26. Bg3 {[%emt 0:00:49]} Bxg3 {[%emt 0:00:05]} (26... g4 $1 $17 27. Nf5 (27. Bxd6 $2 Qxd6 28. Qb4 Qf4 $19) 27... Bxg3 28. Nxh6+ Kh7 29. Ng5+ Kxh6 30. Nxe4 Bxh2+ 31. Kxh2 Nxe4 32. Qe3+ Kg7) 27. hxg3 $11 {[%emt 0:01:48] Strongly threatening Qc3.} (27. fxg3 g4 28. Qc3 gxf3 29. gxf3 Re8 $17) 27... g4 {[%emt 0:00:05]} 28. Nf5 {[%emt 0:03:04]} (28. Qc3 $11 {keeps the balance.} gxf3 29. gxf3) 28... gxf3 $17 {[%emt 0:00:09]} 29. gxf3 {[%emt 0:00:10]} Re5 {[%emt 0:03:11]} 30. Nxh6+ {[%emt 0:00:01]} (30. Nd4 $1 $15) 30... Kh7 $19 {[%emt 0:00:01]} (30... Kg7 31. f4 Re8 32. Nf5+ Kg8 33. Qb4 $17) 31. f4 {[%emt 0:00:08]} Re8 {[%emt 0:01:21][%cal Be5e8,Be8h8,Bh8h4,Bh4h2][%mdl 32]} 32. Nf5 {[%emt 0:00:04]} Bg6 {[%emt 0:01:05]} (32... Qc8 $1 $19 {[%cal Rc8f5] has better winning chances.} 33. Nh4 Qh3 34. Qd3+ Kg8) 33. Nd4 $17 {[%emt 0:00:19]} Qc8 {[%emt 0:00:30]} (33... Ne4 $17 {Hoping for ...Qf6.} 34. Qf3 f5) 34. Kg2 $1 $11 {[%emt 0:00:56]} Kg7 {[%emt 0:00:13]} 35. f3 {[%emt 0:02:47]} (35. Rh1 $11 {was the only way to keep the balance.}) 35... Rh8 $17 {[%emt 0:01:31]} 36. g4 {[%emt 0:00:04] aiming for f5.} Rh4 $1 {[%emt 0:00:32] Threatens to win with ...Qh8.} ({Stronger than} 36... Nxg4 37. fxg4 Rh4 38. Qc3 (38. Qg3 $2 Rxg4 39. Re1 Be4+ 40. Kf2 Rxg3 $19) 38... Rxg4+ 39. Kf2 Rxf4+ 40. Ke3 Re4+ 41. Kf2 (41. Kd2 Kg8 $15) 41... Rf4+ 42. Ke3 Re4+ 43. Kf2 (43. Kd2 Kg8 $15) 43... Rf4+ $11) 37. Qc3 $2 {[%emt 0:02:28][%mdl 8192]} (37. Rh1 $17 Rxg4+ 38. fxg4 Qxg4+ 39. Qg3 Be4+ 40. Kh2 Qxg3+ 41. Kxg3 Bxh1 42. a4) 37... Qh8 $19 {[%emt 0:00:13]} 38. Rg1 {[%emt 0:01:16]} Rh2+ {[%emt 0:01:25]} 39. Kf1 Qh3+ $2 {[%emt 0:00:00]} (39... Qh4 $1 {mates} 40. Nf5+ Bxf5 41. gxf5+ Kh7 42. Rg2 Qh3 43. Qc2 Nh5 44. Kg1 Rh1+ 45. Kf2 Nxf4 46. Rg7+ Kxg7 47. f6+ Kxf6 48. Ke3 Re1+ 49. Kd4 Qf1 50. b3 Qg1+ 51. Qf2 Qxf2+ 52. Kc3 Qc5+ 53. Kb2 Re2+ 54. Kb1 Qg1#) 40. Ke1 $11 {[%emt 0:00:01]} Qh4+ {[%emt 0:00:00]} 41. Kd1 {[%emt 0:30:11]} Qf2 {[%emt 0:30:26][%csl LRb2,LRg1]} 42. Re1 {[%emt 0:00:41] Chess con chili.} Kh7 $2 {[%emt 0:00:00][%mdl 8192]} (42... Qxb2 43. Qxb2 Rxb2 44. Re7 $16) (42... Bb1 $1 $11 {and Black stays safe.}) 43. f5 $18 {[%emt 0:00:00]} Bh5 44. gxh5 {[%emt 0:00:00]} Rh4 {[%emt 0:00:00]} 45. Nc2 {[%emt 0:00:00]} (45. Ne2 $142 Nxh5 46. f6) 45... Rc4 {[%emt 0:00:00] [#]} 46. Qd3 {[%emt 0:00:00]} ({But not} 46. Re2 Qf1+ 47. Re1 Qg2) 46... Rxc6 {[%emt 0:00:00]} 47. Re2 {[%emt 0:00:00]} Qg1+ {[%emt 0:00:00] [#]} 48. Ne1 $1 {[%emt 0:00:00]} d4 {[%emt 0:00:43]} (48... Rc4 {was worth a try.} 49. Qe3 Qxe3 50. Rxe3 Kh6) 49. Qb3 {[%emt 0:00:00]} Qg8 {[%emt 0:03:35]} 50. Re7 {[%emt 0:00:00]} Kg7 {[%emt 0:00:09]} 51. h6+ {[%emt 0:00:00]} Kxh6 {[%emt 0:00:28]} 52. Re2 {[%emt 0:02:43] Black must now prevent Rh2+.} Qg5 {[%emt 0:00:35][%csl Gg5][%cal Rc6c1]} 53. Rh2+ {[%emt 0:01:05]} (53. Rc2 $16 Rxc2 54. Qxc2) 53... Nh5 {[%emt 0:00:47]} ({Black should play} 53... Kg7 $1 $14 54. Rc2 Rxc2 55. Qxc2 Nd5) 54. Rc2 {[%emt 0:00:02]} Rxc2 {[%emt 0:00:29]} 55. Qxc2 {[%emt 0:00:06][%mdl 4096] Endgame KQN-KQN} Qe7 {[%emt 0:00:42]} 56. Qd2+ {[%emt 0:00:55]} Kh7 {[%emt 0:00:20]} 57. Qxd4 {[%emt 0:01:15]} Ng3 {[%emt 0:00:00]} 58. Qd3 {[%emt 0:00:12] Against Qe2+. White threatens f6+ and mate.} Qe5 {[%emt 0:00:06]} 59. f6+ {[%emt 0:00:45]} Nf5 {[%emt 0:00:53]} 60. Nc2 {[%emt 0:01:33][%cal Oc2e3]} Kg6 {[%emt 0:00:01]} 61. Kc1 {[%emt 0:01:06]} ({Better is} 61. b4 $18) 61... Kxf6 $16 {[%emt 0:01:17]} 62. a4 {[%emt 0:00:02]} ({White should try} 62. b3 $16) 62... Qf4+ $1 $14 {[%emt 0:00:09]} 63. Kb1 {[%emt 0:00:46]} Qxa4 {[%emt 0:00:06]} 64. Qc3+ {[%emt 0:00:36]} Kg6 {[%emt 0:00:37]} 65. Qxc7 {[%emt 0:00:01]} Qb5 {[%emt 0:00:33]} 66. Qf4 {[%emt 0:00:29]} Qd3 {[%emt 0:01:13]} 67. b4 {[%emt 0:01:38]} f6 {[%emt 0:00:36] The position is equal.} 68. Kb2 {[%emt 0:00:56]} Nd6 {[%emt 0:00:09]} 69. Qg4+ {[%emt 0:00:11]} Kh6 {[%emt 0:00:31] ( -> ...Nc4+)} 70. Qh4+ {[%emt 0:00:03]} Kg7 {[%emt 0:00:22] ...Nc4+ is the strong threat.} 71. Qg4+ {[%emt 0:00:40]} Kh6 {[%emt 0:00:52]} (71... Kf8 72. Qd4 Nc4+ 73. Kc1 Qxd4 74. Nxd4 $16) 72. Qh4+ {[%emt 0:00:01]} Kg7 {[%emt 0:00:01] And now ...Nc4+ would win.} 73. Qg4+ {[%emt 0:00:06]} Kh6 {[%emt 0:01:50] White really could win this.  Weighted Error Value: White=0.58/Black=0.38} ({Resist} 73... Kf8 74. Qd4 Nc4+ 75. Kc1 Qxd4 76. Nxd4 $16) 1/2-1/2

[Event "HSK GM Invitational 2022"]
[Site "Hamburg"]
[Date "2022.05.22"]
[Round "3.1"]
[White "Trent, Lawrence"]
[Black "Prohaszka, Peter"]
[Result "0-1"]
[ECO "B12"]
[WhiteElo "2398"]
[BlackElo "2579"]
[Annotator "TA"]
[PlyCount "110"]
[EventDate "2022.05.20"]
[EventType "tourn"]
[EventCountry "GER"]
[SourceTitle "playchess.com"]
[Source "ChessBase"]
[SourceQuality "1"]
[TimeControl "40/5400+30:1800+30"]

{[%evp 9,110,12,7,12,12,-12,20,13,7,0,0,0,14,7,15,4,21,22,26,0,0,0,0,0,0,0,0,0,0,0,0,0,0,0,0,0,0,0,14,-19,3,-8,0,-6,0,0,-5,-17,-22,-83,0,-24,-21,-84,-14,-80,-69,-97,-71,-93,-86,-86,-91,-89,-90,-90,-81,-68,-79,-180,-181,-231,-236,-298,-337,-329,-319,-310,-312,-533,-477,-535,-519,-362,-524,-514,-507,-533,-477,-600,-547,-1141,-1147,-1111,-1082,-867,-678,-2589,-2288,-2287,-2320,-1666,-1571]} 1. e4 {[%emt 0:00:05]} c6 {[%emt 0:00:04]} 2. d4 {[%emt 0:00:37]} d5 {[%emt 0:00:06]} 3. e5 {[%emt 0:00:06]} Bf5 {[%emt 0:00:24]} 4. h4 {[%emt 0:00:11]} h5 {[%emt 0:00:17]} 5. Bd3 {[%emt 0:00:07]} Bxd3 {[%emt 0:00:07]} 6. Qxd3 {[%emt 0:00:03][%cal Oe5e6] B12: Caro-Kann: Advance Variation.} Qa5+ {[%emt 0:00:07]} 7. b4 {[%emt 0:00:13]} Qa6 {[%emt 0:00:03]} 8. e6 {[%emt 0:00:05] The position is equal.} Qxd3 {[%emt 0:00:08]} 9. cxd3 {[%emt 0:00:02]} fxe6 {[%emt 0:00:06]} 10. Nd2 {[%emt 0:00:05] [#]} Nh6 $146 {[%emt 0:00:05]} ({Predecessor:} 10... e5 11. dxe5 e6 12. Rb1 Nh6 13. Ndf3 Nf5 14. Nh3 Na6 15. Bd2 Be7 16. Nf4 Kf7 {½-½ (29) Martinez Alcantara,J (2598)-Nakamura,H (2750) Chess.com INT 2022}) 11. Ndf3 {[%emt 0:00:18][%mdl 1024] White has compensation.} Nf5 {[%emt 0:05:37]} 12. Ne2 {[%emt 0:00:59]} Na6 {[%emt 0:03:49]} 13. Rb1 {[%emt 0:02:50]} g6 {[%emt 0:04:09]} 14. Nf4 {[%emt 0:19:27]} Bg7 {[%emt 0:15:57]} 15. Nxe6 {[%emt 0:22:45]} Bf6 $1 {[%emt 0:00:24]} 16. Kd1 {[%emt 0:01:22]} Kd7 {[%emt 0:12:03]} 17. Re1 {[%emt 0:13:53]} Nc7 {[%emt 0:01:08]} 18. Nxc7 {[%emt 0:06:54]} Kxc7 {[%emt 0:00:07]} 19. Bf4+ {[%emt 0:00:04]} Kd7 {[%emt 0:02:57]} 20. b5 {[%emt 0:01:45]} cxb5 {[%emt 0:01:24]} (20... Nxd4 $2 21. Nxd4 Bxd4 22. bxc6+ Kxc6 23. Rxe7 $18) (20... Bxd4 $2 21. bxc6+ Kxc6 22. Nxd4+ Nxd4 23. Rxe7 $18) 21. Rxb5 {[%emt 0:06:41]} b6 {[%emt 0:00:27]} 22. a4 {[%emt 0:00:37]} Rhd8 {[%emt 0:26:35]} 23. Bg5 {[%emt 0:04:28]} Kc6 {[%emt 0:05:31]} 24. Rb2 {[%emt 0:03:59]} Re8 {[%emt 0:02:14]} 25. Rbe2 {[%emt 0:09:16] Threatens to win with Bxf6.} Kd7 {[%emt 0:01:20]} ({Don't play} 25... Nxd4 26. Bxf6 (26. Nxd4+ Bxd4 27. Re6+ Kd7 $11) 26... Nxe2 27. Be5 $16) 26. Re6 {[%emt 0:03:24]} Ng7 {[%emt 0:02:18]} 27. R6e2 {[%emt 0:00:07]} Rac8 {[%emt 0:02:25]} 28. Ra2 {[%emt 0:02:19]} Nf5 {[%emt 0:03:15]} 29. Rae2 {[%emt 0:00:42]} (29. a5 $11 {keeps the balance.}) 29... Ng7 {[%emt 0:03:37]} ({Better is} 29... Bh8 $17 {...Rc3 is the strong threat.} 30. a5 Rc3 31. axb6 Rxd3+ 32. Kc2 Rxf3 $1 {[%mdl 512]} 33. gxf3 Nxd4+ 34. Kd3 Nxe2 35. bxa7 Bd4 $1 36. Kxe2 Bxa7) 30. Ra2 $11 {[%emt 0:00:02]} Rc6 {[%emt 0:01:17]} 31. Rae2 {[%emt 0:01:06]} (31. Re5 $11) 31... Re6 {[%emt 0:03:10]} ({Black should try} 31... Rc3 $1 $17 32. a5 Rxd3+ 33. Kc2 Ra3 34. axb6 axb6) 32. Ne5+ {[%emt 0:01:18]} (32. Re3 $11) 32... Bxe5 $17 {[%emt 0:00:11]} 33. dxe5 {[%emt 0:00:01]} Rc6 {[%emt 0:01:03]} 34. Ra2 {[%emt 0:01:00]} Ne6 {[%emt 0:01:14]} 35. Be3 {[%emt 0:00:29]} d4 {[%emt 0:02:27]} 36. Bd2 {[%emt 0:00:01]} Nc5 {[%emt 0:00:44]} 37. Ke2 {[%emt 0:00:25]} Ke6 {[%emt 0:00:05]} 38. f4 {[%emt 0:01:04]} Kf5 {[%emt 0:00:45]} 39. Rc2 {[%emt 0:00:23] [#]} (39. Rb1 $17) 39... Rec8 $1 $19 {[%emt 0:00:48]} 40. Rec1 {[%emt 0:00:07] [#]} (40. a5 $142) 40... R6c7 $1 {[%emt 0:00:21]} 41. Kf3 {[%emt 0:16:20]} Ne6 {[%emt 0:00:23]} 42. Rxc7 {[%emt 0:04:46]} Rxc7 {[%emt 0:00:02][%mdl 4096] Endgame KRB-KRN} 43. Rd1 {[%emt 0:00:13]} Rc2 {[%emt 0:04:15]} 44. g3 $2 {[%emt 0:00:00]} (44. a5 {keeps fighting.}) 44... a5 {[%emt 0:11:35]} 45. Be1 {[%emt 0:01:29]} Ra2 {[%emt 0:04:07]} 46. Rb1 {[%emt 0:02:27]} Nc5 {[%emt 0:00:37]} 47. Bf2 {[%emt 0:00:05] Black is clearly winning.} Rxa4 {[%emt 0:02:27]} 48. Rxb6 {[%emt 0:00:04]} Nxd3 {[%emt 0:00:41]} 49. e6 {[%emt 0:01:57]} Nxf2 {[%emt 0:01:26]} 50. Rb5+ {[%emt 0:00:02]} Kxe6 {[%emt 0:00:09]} 51. Kxf2 {[%emt 0:00:01]} Ra1 {[%emt 0:01:10]} 52. Re5+ {[%emt 0:01:03]} Kd6 {[%emt 0:00:44] White must now prevent ...a4.} 53. Rg5 {[%emt 0:03:51]} a4 {[%emt 0:00:48] Strongly threatening ...a3.} 54. Rxg6+ {[%emt 0:00:13]} Kd5 {[%emt 0:01:02] Hoping for ...a3.} 55. Rg5+ {[%emt 0:00:12]} Kc4 {[%emt 0:09:45] Weighted Error Value: White=0.42/Black=0.06 (flawless)} 0-1

[Event "HSK GM Invitational 2022"]
[Site "Hamburg"]
[Date "2022.05.22"]
[Round "3.2"]
[White "Colpe, Malte"]
[Black "Souleidis, Georgios"]
[Result "0-1"]
[ECO "D32"]
[WhiteElo "2348"]
[BlackElo "2430"]
[Annotator "TA"]
[PlyCount "102"]
[EventDate "2022.05.20"]
[EventType "tourn"]
[EventCountry "GER"]
[SourceTitle "playchess.com"]
[Source "ChessBase"]
[SourceQuality "1"]
[TimeControl "40/5400+30:1800+30"]

{[%evp 23,102,38,50,50,52,56,50,54,54,44,39,51,52,52,58,51,72,62,68,67,119,107,111,102,177,170,153,100,91,82,104,66,55,44,65,58,73,39,42,44,64,22,25,28,40,31,35,23,178,-197,-187,-196,-221,-194,-115,-123,-104,-184,-174,-190,0,-101,0,-188,-135,-172,-122,-294,-271,-247,-193,-568,-312,-314,-291,-1129,-1129,-1126,-1086,-1165,-1095]} 1. d4 {[%emt 0:00:04]} d5 {[%emt 0:01:48]} 2. c4 {[%emt 0:00:17]} e6 {[%emt 0:00:05]} 3. Nc3 {[%emt 0:00:16]} c5 {[%emt 0:00:23]} 4. cxd5 {[%emt 0:00:17]} cxd4 {[%emt 0:00:32]} 5. Qa4+ {[%emt 0:01:04]} Bd7 {[%emt 0:00:19]} 6. Qxd4 {[%emt 0:00:06]} exd5 {[%emt 0:00:08]} 7. Qxd5 {[%emt 0:00:57]} Nf6 {[%emt 0:00:14]} 8. Qd1 {[%emt 0:00:46]} Bc5 {[%emt 0:00:39]} 9. Nf3 {[%emt 0:01:21]} O-O {[%emt 0:00:19]} 10. e3 {[%emt 0:00:39]} Qe7 {[%emt 0:00:14]} 11. Be2 {[%emt 0:00:22]} Rd8 {[%emt 0:00:07]} 12. O-O {[%emt 0:02:33]} Nc6 {[%emt 0:01:08]} 13. Qb3 {[%emt 0:08:36] D32: Tarrasch Defence: Sidelines and lines without g3.} a6 {[%emt 0:13:27]} 14. Bd2 {[%emt 0:06:07]} ({Don't blunder} 14. Qxb7 $2 Rdb8 15. Qc7 Bd6 16. Qxb8+ Rxb8 17. Bxa6 Ng4 $19) 14... Bf5 {[%emt 0:35:06] [#]} 15. Rfd1 $146 {[%emt 0:12:12] White is slightly better.} ({Predecessor:} 15. Na4 Be6 16. Qc2 Ba7 17. Rfd1 Rac8 18. Nc3 Nb4 19. Qb1 g6 20. Ne4 Nc2 21. Nxf6+ Qxf6 {1-0 (45) Ding,L (2799)-Grischuk,A (2776) chess24.com INT 2021}) 15... b5 {[%emt 0:12:43] Inhibits Bc4.} 16. Nh4 $1 {[%emt 0:02:49]} Be6 {[%emt 0:02:29]} 17. Qc2 {[%emt 0:00:07]} Nb4 {[%emt 0:09:12]} 18. Qb1 {[%emt 0:00:40]} g6 {[%emt 0:00:14] Inhibits Nf5.} 19. a3 {[%emt 0:14:05]} Nc6 {[%emt 0:02:06]} 20. b4 {[%emt 0:01:54]} Bb6 {[%emt 0:01:54]} 21. Nf3 {[%emt 0:08:26]} Ng4 {[%emt 0:01:14]} ({Black should try} 21... Bf5 $14 22. Qb2 Ne5) 22. Qb2 {[%emt 0:06:50]} Bc7 {[%emt 0:07:19]} 23. Be1 {[%emt 0:03:49]} Nce5 {[%emt 0:00:41]} (23... Rab8 $16 {was worth a try.}) 24. h3 $18 {[%emt 0:03:17]} Nf6 {[%emt 0:00:42]} 25. Rxd8+ {[%emt 0:01:26]} (25. Nd4 $142) 25... Rxd8 $16 {[%emt 0:00:10]} 26. Nd4 {[%emt 0:05:57]} Nc4 {[%emt 0:00:45]} 27. Bxc4 {[%emt 0:03:11]} Bxc4 {[%emt 0:00:04]} 28. Rd1 {[%emt 0:01:42] aiming for Nc6.} Rc8 {[%emt 0:02:24]} 29. Qd2 {[%emt 0:03:03]} h6 {[%emt 0:01:14]} 30. f3 {[%emt 0:01:28][%cal Bf2f3,Bf3f4][%mdl 32]} (30. Nc6 $5 {[%cal Rc6e7]} Qe8 31. Na5 $11) 30... Re8 {[%emt 0:01:42]} 31. Bf2 {[%emt 0:01:48]} Qd6 {[%emt 0:01:42][%csl Gc7][%cal Rd6h2]} 32. f4 {[%emt 0:00:50]} Qe7 {[%emt 0:01:57]} 33. Nf3 {[%emt 0:02:54]} Rd8 {[%emt 0:01:24]} 34. Qe1 {[%emt 0:00:34]} Re8 {[%emt 0:00:53]} 35. Bh4 {[%emt 0:01:45]} Kg7 $2 {[%emt 0:00:47] [#]} (35... Bb6 $11) 36. Kf2 $4 {[%emt 0:01:57][%mdl 8192] [#]} (36. Rd4 $1 $18 {is the narrow road to win.}) 36... Bxf4 $1 $19 {[%emt 0:01:39][%mdl 512]} 37. e4 {[%emt 0:03:50]} (37. Kg1 Qxe3+) 37... Qa7+ {[%emt 0:00:33]} 38. Nd4 {[%emt 0:00:46]} Bb3 {[%emt 0:00:35]} (38... g5 $19 39. Bg3 Rd8 40. Bxf4 gxf4) 39. Bxf6+ $17 {[%emt 0:00:34]} Kxf6 {[%emt 0:00:01]} 40. Rd3 {[%emt 0:00:39]} (40. Kf1 $17 Bxd1 41. Nd5+ Kg7 42. Nc6) 40... Bc4 $36 {[%emt 0:00:52][%mdl 2048] Black is on the roll.} 41. Rd1 {[%emt 0:07:31]} Bb3 {[%emt 0:16:07] A strong pair of Bishops.} (41... Bc7 $19 {...Bb6 is the strong threat.} 42. Kf3 (42. Qe3 $2 Bb6 $19) 42... Kg7) 42. Rd3 $1 $17 {[%emt 0:01:25]} Bc4 {[%emt 0:00:08] Black is much more active.} (42... Rd8 $17 43. Kf3 Rxd4 44. Rxd4 Qxd4 45. Kxf4 g5+ 46. Kf3 Bc4) 43. Rd1 $19 {[%emt 0:00:05]} Kg7 {[%emt 0:02:47]} (43... Bc7 $19 {Hoping for ...Bb6.} 44. Kf3 (44. Qe3 Bb6 $17) 44... Kg7) 44. Kf3 {[%emt 0:04:20]} Qc7 {[%emt 0:02:51]} ({Better is} 44... Bc7 $19 {[%cal Of7f5] And now ...f5! would win.} 45. g4 Bb6) 45. Nde2 $2 {[%emt 0:01:55]} (45. g3 $17 Be5 46. Kg2) 45... Be5 {[%emt 0:00:49]} 46. Nd5 {[%emt 0:01:27]} Qc6 {[%emt 0:00:27]} 47. Nec3 $2 {[%emt 0:06:31]} (47. g3 {is tougher.}) 47... Re6 {[%emt 0:04:09]} 48. Kf2 {[%emt 0:01:02]} Rf6+ {[%emt 0:00:44]} 49. Kg1 $2 {[%emt 0:00:41]} (49. Ke3 Bxc3 50. Nxc3) 49... Rf1+ {[%emt 0:00:24] Black is clearly winning.} 50. Qxf1 {[%emt 0:00:41]} Bxf1 {[%emt 0:00:01]} 51. Kxf1 {[%emt 0:00:19]} Bxc3 {[%emt 0:00:28] Black used his chance.  Weighted Error Value: White=0.52/Black=0.38} 0-1

[Event "HSK GM Invitational 2022"]
[Site "Hamburg"]
[Date "2022.05.22"]
[Round "3.3"]
[White "Svane, Frederik"]
[Black "Mendonca, Leon Luke"]
[Result "1/2-1/2"]
[ECO "B10"]
[WhiteElo "2501"]
[BlackElo "2551"]
[Annotator "TA"]
[PlyCount "90"]
[EventDate "2022.05.20"]
[EventType "tourn"]
[EventCountry "GER"]
[SourceTitle "playchess.com"]
[Source "ChessBase"]
[SourceQuality "1"]
[TimeControl "40/5400+30:1800+30"]

{[%evp 9,90,9,12,13,9,0,0,8,0,0,0,0,0,0,0,0,0,0,0,0,6,0,0,0,0,0,0,-10,0,-23,0,0,0,0,0,0,0,0,0,0,0,0,0,0,0,0,0,0,0,0,0,-10,-9,-9,-9,-9,-6,-8,-9,-65,-7,-12,-4,-5,0,0,0,0,0,0,0,0,0,-18,0,0,0,0,0,0,0,0,0]} 1. e4 {[%emt 0:00:03]} c6 {[%emt 0:00:19]} 2. Nf3 {[%emt 0:00:41]} d5 {[%emt 0:00:24]} 3. d3 {[%emt 0:00:07]} Qc7 {[%emt 0:01:38]} 4. Nc3 {[%emt 0:00:06]} dxe4 {[%emt 0:00:25]} 5. dxe4 {[%emt 0:00:08]} e5 {[%emt 0:00:57]} 6. Bc4 {[%emt 0:00:04] B10: Caro-Kann: 2 d3 and 2 c4.} b5 {[%emt 0:01:07]} 7. Bb3 {[%emt 0:00:06]} h6 {[%emt 0:00:37] Against Ng5} 8. Qe2 {[%emt 0:03:33]} Nf6 {[%emt 0:16:36][%cal Bg8f6,Bf6d7,Bd7c5,Bc5d3][%mdl 32]} 9. a4 {[%emt 0:11:02]} b4 {[%emt 0:01:17]} 10. Nd1 {[%emt 0:00:20][%cal Bc3d1,Bd1e3,Be3c4][%mdl 32] [#]} Nbd7 $146 {[%emt 0:03:38]} ({Predecessor:} 10... Bc5 11. Bc4 Nbd7 12. b3 Bd6 13. Bb2 Nc5 14. Nd2 O-O 15. f3 Ne6 16. Bxe6 Bxe6 {1-0 (72) Lei,T (2505)-Gunina,V (2462) Riga 2021}) 11. Ne3 {[%emt 0:01:04]} ({Of course not} 11. Qc4 Nc5 12. Qe2 Ncxe4 $17) 11... Nc5 {[%emt 0:08:35]} 12. Nc4 {[%emt 0:00:08]} Nfd7 {[%emt 0:02:56]} (12... Ncxe4 $2 13. Ncxe5 Bc5 14. Bxf7+ Kf8 15. Be3 $18) 13. O-O {[%emt 0:18:50]} Be7 {[%emt 0:01:43]} 14. Be3 {[%emt 0:12:26]} O-O {[%emt 0:16:59]} 15. Nfd2 {[%emt 0:14:01]} Nxb3 {[%emt 0:08:22]} 16. cxb3 {[%emt 0:00:33]} Nc5 {[%emt 0:01:05]} 17. Qh5 {[%emt 0:07:17]} Nd3 {[%emt 0:09:45]} 18. Nf3 {[%emt 0:09:26][%cal Rf3e5]} Bf6 {[%emt 0:03:59]} 19. Rad1 {[%emt 0:05:49]} Rd8 {[%emt 0:01:59]} 20. Nfxe5 {[%emt 0:02:32]} Nxe5 {[%emt 0:02:47]} 21. Rxd8+ {[%emt 0:00:40]} Qxd8 {[%emt 0:00:45]} 22. Nxe5 {[%emt 0:00:04]} Qe8 {[%emt 0:02:15]} 23. Nc4 {[%emt 0:01:03]} Qxe4 {[%emt 0:01:29]} 24. Qxf7+ {[%emt 0:04:34]} Kxf7 {[%emt 0:00:04]} 25. Nd6+ {[%emt 0:00:04]} Kg8 {[%emt 0:04:51]} 26. Nxe4 {[%emt 0:00:05]} Bxb2 {[%emt 0:00:09]} 27. Rb1 {[%emt 0:01:23]} Be5 {[%emt 0:03:56]} 28. Rc1 {[%emt 0:02:11]} Be6 {[%emt 0:01:42]} 29. Nc5 {[%emt 0:05:17]} Bd5 {[%emt 0:00:22]} 30. Na6 {[%emt 0:00:09]} Bxb3 {[%emt 0:02:52] A strong pair of Bishops.} 31. Nxb4 {[%emt 0:00:04]} Bxa4 {[%emt 0:00:26] White should prevent ...a5.} 32. Nxc6 {[%emt 0:00:08]} Bxc6 {[%emt 0:00:05]} 33. Rxc6 $11 {[%emt 0:00:03][%mdl 4096] Endgame KRB-KRB} a5 {[%emt 0:00:10][%cal Ba7a5,Ba5a4,Ba4a3][%mdl 32] [#] ...a4 is the strong threat.} 34. f4 {[%emt 0:00:51]} (34. Bc5 $11) 34... Bf6 {[%emt 0:01:16]} ({Better is} 34... Bb2 $15 35. Rc2 Bf6) 35. Bc5 {[%emt 0:00:31] The position is equal.} a4 {[%emt 0:00:08] And now ...a3 would win.} 36. Ba3 {[%emt 0:00:26]} Rb8 {[%emt 0:01:31]} 37. Ra6 {[%emt 0:00:49]} Rb1+ {[%emt 0:00:03]} 38. Kf2 {[%emt 0:00:04]} Ra1 {[%emt 0:00:16]} 39. Bd6 {[%emt 0:00:42]} ({Much worse is} 39. Rxa4 {[#]} Be7 $1 40. Bxe7 (40. Ra8+ $2 Kf7 $17) 40... Rxa4 $17) 39... Bb2 {[%emt 0:00:50]} 40. Be5 {[%emt 0:00:47]} a3 {[%emt 0:01:05]} 41. Rg6 {[%emt 0:07:19]} Bxe5 {[%emt 0:01:15]} 42. fxe5 {[%emt 0:26:00]} a2 {[%emt 0:30:52]} (42... Rc1 $5 43. Ra6 Rc3 $15) 43. Ra6 {[%emt 0:00:30]} Kf7 {[%emt 0:00:30]} 44. Kg3 {[%emt 0:00:30]} Re1 {[%emt 0:00:30]} 45. Rxa2 {[%emt 0:00:00]} Rxe5 {[%emt 0:00:00] An even fight not without its subleties.  Weighted Error Value: White=0.05 (flawless) /Black=0.04 (flawless)} 1/2-1/2